{"text_format":"3","workbook":"xlsx","n_sheets":6,"sheets":["Read Me FIRST","5.1Tender Cover Sheet","5.1.1.1 Preamble","5.1.2 Summary","5.1.3 BOQ","5.1.4 CPA Formulae"],"not_rendered":{"images":1,"external_links":17,"defined_names":590},"read":"whole","date_system":"1900"}

{"sheet":"Read Me FIRST","index":0,"n_rows":29,"n_cols":3,"rows_kept":29,"merged":[[8,1,8,2],[10,1,10,2],[12,1,12,2],[26,1,26,2]]}
["Project:",null,"KUSILE POWER STATION PROJECT"]
["Enquiry No.",null,{"$f":"'5.1Tender Cover Sheet'!C19","v":0}]
["Package Name:"]
["Tenderer's Name:",null,{"$f":"'5.1Tender Cover Sheet'!C23","v":0}]
[]
[]
["READ ME"]
[]
[null,"Read these notes BEFORE you commence input or make any changes to this workbook"]
[]
[null,"The Tenderer must provide a clear indication on the Cover Sheet as to whether the offer is \"main\" or \"alternative\" (and if there are several alternatives, to number them). There must be a separate Excel file for each ooffer if applicable"]
[]
[null,"NOTE:  ALL CALCULATIONS ARE THE RESPONSIBILITY OF THE TENDERER, AND MUST BE CHECKED THOROUGHLY.  ANY DISCREPANCY FOUND IN THE CALCULATIONS IN THIS WORKBOOK MUST BE BROUGHT TO THE ATTENTION OF ESKOM, THROUGH THE DEIGNATED BUYER!"]
[]
[]
[1,"This workbook contains the following sheets:"]
[null,"Read Me","This sheet provides an overview to the Tenderer of the content and role of the sheets making up the Price Schedules.  It will not form part of the tender or contract."]
[null,"5.1 Tender Cover Sheet","This is the cover sheet for Section 5.1 and provides the total tender price.  It is also the source of the package name, tenderer name etc for the other sheets."]
[null,"5.1.1 Preamble","This sheet provides general guidelines for this section."]
[null,"5.1.2 Summary","This is where the total amounts of all the trades are shown"]
[null,"5.1.3 BOQ","This is the main data entry sheet for the Tenderer to complete. "]
[null,"5.1.4 CPA Formulae","This is where the tenderer selects the CPA Formulae"]
[]
[]
[]
[2,"Conventions used in this workbook"]
[null,"The following conventions have been used in this workbook to facilitate its accurate use:"]
[null,"Red","This GREEN shading is used for cells where DATA ENTRY is required from the Tenderer.  The Tenderer must complete the information in these GREEN shaded cells."]
[null,null,"PLEASE REFRAIN from tampering with ANY other cells contained in this workbook as it may affect Eskom's standard formulae and lead to data integrity issues."]

{"sheet":"5.1Tender Cover Sheet","index":1,"n_rows":49,"n_cols":4,"rows_kept":49,"merged":[[1,1,1,2]]}
[]
[null,"KUSILE POWER STATION PROJECT"]
{"$rows_empty":12}
[null,"PRICING INFORMATION"]
[]
[null,"TENDER INFORMATION"]
[]
[null,"ENQUIRY No."]
[]
[null,"NAME OF PACKAGE:",{"$f":"'Read Me FIRST'!C3","v":0}]
[]
[null,"TENDERER’S NAME:  "]
[]
[]
[null,"Annexure IT 5.1 Price Schedules "]
[]
[]
[null,"THE PRICE:  IN ZAR",{"$f":"'5.1.2 Summary'!E24","v":{"v":0,"d":"  0  RAND"}}]
[null,"(excluding VAT)"]
[null,"RAND VALUE IN WORDS"]
[]
[]
[]
[]
[null,"DATE :"]
[]
[]
[]
[null,"FULL NAMES OF SIGNATORY:"]
[]
[]
[]
[null,"DESIGNATION OF SIGNATORY:"]
[]
[]
[]
[null,"SIGNATURE :"]
[{"$nulls":3}," "]

{"sheet":"5.1.1.1 Preamble","index":2,"n_rows":10,"n_cols":3,"rows_kept":10,"merged":[[7,1,7,2],[8,1,8,2],[9,1,9,2],[10,1,10,2],[11,1,11,2]]}
["Project:",null,"KUSILE POWER STATION PROJECT"]
["Enquiry No.",null,{"$f":"'5.1Tender Cover Sheet'!C19","v":0}]
["Package Name:",null,{"$f":"'5.1Tender Cover Sheet'!C21","v":0}]
["Tenderer's Name:",null,{"$f":"'5.1Tender Cover Sheet'!C23","v":0}]
[]
["5.1.1.1 PREAMBLE TO PRICE SCHEDULE "]
[]
[1,"The Provisional Price Schedule provides the basis of valuation of all the work activities and inputs and information for general contract progress monitoring. "]
[2,"The amount due at each application for payment date is based on activities and/or milestones completed as indicated on the Price Schedule/Bills of Quantities. The Tenderer must provide all necessary information which is required to determine amounts due in respect of each application for payment relative to the activities."]
[3,"The total of the prices must include for all direct and indirect costs, overheads, profits, on costs, risks, liabilities, obligations, etc. relative to the contract."]

{"sheet":"5.1.2 Summary","index":3,"n_rows":24,"n_cols":7,"rows_kept":24,"merged":[[2,2,2,3],[23,1,23,3]]}
[]
[]
[null,null,"FINAL SUMMARY"]
[]
[]
[null,"ITEM NO.","SECTION","UNIT","AMOUNT"]
[]
[null,"1.0","P&Gs CONSERVANCY TANKS and CHEMICAL TOILETS"]
[null,"1.1","Fixed Preliminaries & General Items",1,{"$f":"'5.1.3 BOQ'!G13","v":0}]
[]
[null,"1.2","Time Related Preliminaries & General Items",1,{"$f":"'5.1.3 BOQ'!G23","v":0}]
[]
[null,"2.0","CONSERVANCY TANKS"]
[null,"2.1","Maintenance of Conservancy Tanks",1,{"$f":"'5.1.3 BOQ'!G30","v":0}]
[]
[null,"3.0","CHEMICAL TOILETS"]
[null,"3.1","Maintenance of Chemical Toilet and Prefabricated Ablution Units ",1,{"$f":"'5.1.3 BOQ'!G47","v":0}]
[]
[null,"3.2","Prefabricated ablution units at the power block",1,{"$f":"'5.1.3 BOQ'!G56","v":0}]
[]
[]
[]
[]
[null,"TOTAL AMOUNT",null,null,{"$f":"SUM(E9:E23)","v":0},{"$f":"'5.1.3 BOQ'!G57","v":0},{"$f":"E24=F24","v":true}]

{"sheet":"5.1.3 BOQ","index":4,"n_rows":57,"n_cols":7,"rows_kept":57,"merged":[[56,0,56,5]]}
["Enquiry No.  :"]
["Project           :"]
["Name of Tenderer  :"]
[]
["Seq No.","Section Description","Units","Duration","Quantity","Rate","Contract Total"]
[1,"P&Gs CONSERVANCY TANKS and CHEMICAL TOILETS"]
[1.1,"Fixed Preliminaries & General Items",null,"Once Off"]
["1.1.1","Contractual requirements","Sum",1,{"v":1,"d":"1.00"},null,{"$f":"D8*E8*F8","v":0}]
["1.1.2","Environmental related costs","Sum",1,{"v":1,"d":"1.00"},null,{"$f":"D9*E9*F9","v":0}]
["1.1.3","Health & Safety related costs including inductions and medical tests ect.","Sum",1,{"v":1,"d":"1.00"},null,{"$f":"D10*E10*F10","v":0}]
["1.1.4","Site establishment","Sum",1,{"v":1,"d":"1.00"},null,{"$f":"D11*E11*F11","v":0}]
["1.1.5","Site  De-establishment","Sum",1,{"v":1,"d":"1.00"},null,{"$f":"D12*E12*F12","v":0}]
[{"$nulls":6},{"$f":"SUM(G8:G12)","v":0}]
[1.2,"Time Related Preliminaries & General Items"]
["1.2.1","Operation and maintenance of facilities on site","Month",22,{"v":1,"d":"1.00"},null,{"$f":"F15*E15*D15","v":0}]
["1.2.2","Company and Head Office overhead costs for duration of the contract","Month",22,{"v":1,"d":"1.00"},null,{"$f":"F16*E16*D16","v":0}]
["1.2.3","Health & Safety related costs; PPE consumables","Month",22,{"v":1,"d":"1.00"},null,0]
["1.2.4","Provision of PPE ","Annually",2,{"v":1,"d":"1.00"},null,{"$f":"F18*E18*D18","v":0}]
["1.2.5","Supervision for duration of the service (full time)","Month",22,{"v":1,"d":"1.00"},null,{"$f":"F19*E19*D19","v":0}]
["1.2.6","Environmental Officer (full time)","Month",22,{"v":1,"d":"1.00"},null,{"$f":"F20*E20*D20","v":0}]
["1.2.7","Safety Officer (full time)","Month",22,{"v":1,"d":"1.00"},null,{"$f":"F21*E21*D21","v":0}]
["1.2.8","P.A Bonus (As per SSA)","Sum",1,{"v":1,"d":"1.00"},null,{"$f":"F22*E22*D22","v":0}]
[{"$nulls":6},{"$f":"SUM(G15:G22)","v":0}]
[null,"Note : Quantities may be reduced in line with site requirements"]
[]
[2,"CONSERVANCY TANKS"]
[2.1,"Maintenance of Conservancy Tanks"]
["2.1.1","Pumping and disposal of conservancy tanks sewage on site  (February 2022 - December 2022)","Litres/month",11,{"v":7497473.333333333,"d":"7,497,473.33"},null,{"$f":"F28*E28*D28","v":0}]
["2.1.2","Pumping and disposal of conservancy tanks sewage on site (January 2023 - November 2023)","Litres/month",11,{"$f":"[1]Reduction!M4","v":{"v":6747726,"d":"6,747,726.00"}},null,{"$f":"F29*E29*D29","v":0}]
[{"$nulls":6},{"$f":"SUM(G28:G29)","v":0}]
[3,"CHEMICAL TOILETS"]
[3.1,"Maintenance of Chemical Toilet and Prefabricated Ablution Units "]
["3.1.1","Chemical toilets"]
["3.1.1.1 (a)","Rental, Cleaning and Maintenance of chemical toilets (as per scope of works)  (February 2022 - December 2022)","No/month",11,{"v":350,"d":"350.00"},null,{"$f":"F34*E34*D34","v":0}]
["3.1.1.1 (b)","Rental, Cleaning and Maintenance of chemical toilets (as per scope of works) ","No/month",11,{"v":315,"d":"315.00"},null,{"$f":"F35*E35*D35","v":0}]
[]
["3.1.1.2 (a)","Relocation of chemical  toilets  (February 2022 - December 2022)","No/month",11,{"v":48,"d":"48.00"},null,{"$f":"F37*E37*D37","v":0}]
["3.1.1.2 (b)","Relocation of chemical  toilets  (January 2023 - November 2023)","No/month",11,{"$f":"[1]Reduction!M8","v":{"v":43,"d":"43.00"}},null,{"$f":"F38*E38*D38","v":0}]
[]
["3.1.1.3","Cleaning and servicing of urinals (as per scope of works)","No/month",22,{"v":10,"d":"10.00"},null,{"$f":"F40*E40*D40","v":0}]
[]
["3.1.1.4 (a)","Servicing and Offsite disposal of chemical toilets sewerage at  STP (February 2022 - December 2022)","Litres/month",11,{"v":617743.3333333334,"d":"617,743.33"},null,{"$f":"F42*E42*D42","v":0}]
["3.1.1.4 (b)","Servicing and Offsite disposal of chemical toilets sewerage at  STP  (January 2023 - November 2023)","Litres/month",11,{"$f":"[1]Reduction!M10","v":{"v":555969,"d":"555,969.00"}},null,{"$f":"F43*E43*D43","v":0}]
[]
["3.1.1.5 (a)","Servicing and Offsite disposal of Kitchen and Car Wash waste water at STP (February 2022 - December 2022)","Litres/month",11,{"v":1223906.6666666667,"d":"1,223,906.67"},null,{"$f":"F45*E45*D45","v":0}]
["3.1.1.5 (b)","Servicing and Offsite disposal of Kitchen and Car Wash waste water at STP  (January 2023 - November 2023)","Litres/month",11,{"$f":"[1]Reduction!M12","v":{"v":1101516,"d":"1,101,516.00"}},null,{"$f":"F46*E46*D46","v":0}]
[{"$nulls":6},{"$f":"SUM(G34:G46)","v":0}]
["3.2","Prefabricated ablution units at the power block"]
[]
["3.2.1","Rental of prefabricated ablution units with septic tank (12 off) (3 x 6m) ","Months",22,{"v":12,"d":"12.00"},null,{"$f":"F50*E50*D50","v":0}]
["3.2.2","Rental of prefabricated ablution units with septic tank (1 off) (3x3)","Months",22,{"v":1,"d":"1.00"},null,{"$f":"F51*E51*D51","v":0}]
[]
["3.2.4","Cleaning and Maintenance  of prefabricated ablution units (as per scope of works)","Months",22,{"v":18,"d":"18.00"},null,{"$f":"F53*E53*D53","v":0}]
[]
["3.2.5","Relocation of prefabricated ablution units","Provisional",1,{"v":20,"d":"20.00"},null,{"$f":"F55*E55*D55","v":0}]
[{"$nulls":6},{"$f":"SUM(G50:G55)","v":0}]
[{"$nulls":6},{"$f":"G13+G23+G30+G47+G56","v":0}]

{"sheet":"5.1.4 CPA Formulae","index":5,"n_rows":68,"n_cols":10,"rows_kept":68,"merged":[[59,1,59,6],[59,7,59,8]]}
["KUSILE POWER STATION PROJECT"]
["ENQUIRY No.",null,null,{"$f":"'5.1Tender Cover Sheet'!C19","v":0}]
["TENDERER NAME:",null,null,{"$f":"'5.1Tender Cover Sheet'!C23","v":0}]
["NAME OF PACKAGE:",null,null,{"$f":"'5.1Tender Cover Sheet'!C21","v":0}]
["PRICE ADJUSTMENT FOR INFLATION"]
["Summary"]
["No","Description"]
["A",0,null,null,"Type in description of formula which is carried through below"]
[]
[]
[]
["GENERAL NOTES :"]
["a.","References to \"indices\" below have the meaning of \"cost indices or reference prices\",  unless otherwise stated."]
["b.","Where historical information is applicable as requested below, internet address references which are accessible to the"]
[null,"general public may be submitted instead, with the specific electronic route and web page reflecting the applicable data."]
["c.","Each formula is related to one unique currency. Mixing of currencies in a specific formula is not acceptable."]
["CPA FORMULA REQUIREMENTS :"]
["i.","Formulae must be linked to independent cost indices or other benchmarks (\"reference prices\") and must be clearly and"]
[null,"completely defined. The source must be a recognised statistical publishing source and must not be in-house indices."]
["ii.","Local Indices: Where local indices other than SEIFSA or StatsSA are specified, the tenderer is to submit 5 years' historical data"]
[null,"for such indices.  Note that the Contractor must ensure that indices are published and recommended by the \"Source\" as"]
[null,"applicable to the work involved. For example SEIFSA has terminated the publication of Table E and is replaced by Table E-A and"]
[null,"or E-EX and the specific sub breakdown of such must be identified. Also SEIFSA recommends utilisation of Table L-2 for road"]
[null,"transport rather than Table L-1.  "]
["iii.","Foreign Price Adjustments: In the case of foreign price adjustments, the Contractor is to submit 5 years' historical data for the"]
[null,"tendered indices.  Where a formula is linked to indices in a country, payment of the amounts for that formula must be in the "]
[null,"currency of the same country.  A formula may not be linked to indices of more than one country."]
["iv.","Commodity Price Linked Payments: The reference price is considered as the base price (index) for purpose of the CPA formula"]
[null,"and is incuded in the applicable tables below and must be in the currency in which the CPA will be payable.  The exchange"]
[null,"rate applied to convert the base price in a foreign currency into that of the currency of the formula must also be indicated in"]
[null,"the tables below if the price is not in the same currency as the applicable formula.. ie exposure to the movement in a"]
[null,"reference price is in the same currency as that of the CPA formula.  The Contractor is to submit 5 years' historical price data"]
[null,"for such commodity, "]
["v.","London Metal Exchange (LME) Prices: For metals traded on the LME, the tonnage will be required before contract award in"]
[null,"order for Eskom to hedge the metal price fluctuations.  This applies also for prices linked to local indices or reference prices. "]
[null,"Though these metals are traded in US$, prices are daily quoted in various other currencies. "]
[null,"The LME price in the currency of the formula must apply and thus not the US$ unless the amount payable in terms of the"]
[null,"formula is US$.  Refer to the \"LME\" Sheet in this file for more detail regarding this aspect.  By indicating any of these metals in"]
[null,"the formulae below, the contractor declares that neither he nor any other body avails or will avail of forward price and/or"]
[null,"currency cover for the metal(s).  "]
["vi.","CPA Base Date: The CPA base date for calculating price movements is the Base Date as defined in the Particular Conditions,"]
[null,"Clause 1.1.3.1. For indices or reference prices published as at certain dates, and where such a date is not the Base Date, the"]
[null,"latest date for which it is published before the Base Date will be considered as the Base Date index or reference price.  In"]
[null,"instances where the figure or value is not as at the Base Date or considered as the Base Date index or reference price as"]
[null,"explained herein, the date, figure or value as well as the reason for the deviation must be clearly separately stated and must"]
[null,"be realistic for purposes of the price adjustment. "]
["vii.","Period for Movement in Indices: The period for which the movement in indices or reference prices is considered, is the period"]
[null,"until the last day of the month prior to the  month in which the work in question was executed or completed (or in which an"]
[null,"event or activity for which the adjustment applies, took place).  For indices or reference prices published as at certain dates,"]
[null,"and where such a date is not the last day of the month prior to the month in which the work was executed or completed (or an"]
[null,"event or activity took place),  then latest date for which the indices or price references are published before the last day of the"]
[null,"month prior to the execution or completion of work (or an event or activity took place) is considered as the last day index"]
[null,"or reference price of the month prior to execution or completion of work (or event or activity). "]
["viii.","Proportions/weighting/coefficients/base reference in CPA Formulae: The fixed portion of each formula, not subject to inflation,"]
[null,"is at least 15% and contractors may submit higher fixed portion percentages.  The indices or other benchmarks and their"]
[null,"proportions in the formula must be realistic and relative to the applicable work. The fixed portion and other proportions must add"]
[null,"up to 100%."]
["ix.","Base Index or Reference Price :   The base index or reference price must be inserted in the appropriate column"]
["FORMULA No:"]
[" A ",{"$nulls":6},"Exchange rate for converting base reference price (eg US$ LME price) to the currency of this formula"]
["Index","Proportion / Coefficient / Weight / Base reference price","Description / Scope of Index (eg Labour)","Title/Definition : Linked to the index, e.g., Table C3, All hourly paid employees.  Must be completely defined","Source of Index ((indices prepared by (e.g. SEIFSA, StatsSA, LME)","Base month for CPA if not Base Date as defined (See Note vi above)","Formula Currency Code","Currency Code","Exchange Rate Currency 1,00 =","Historical Data provided (Yes/No/Internet address)"]
["A1"]
["A2"]
["A3"]
["A4"]
["A5"]
["A6",{"v":0.15,"d":"0.150"},"Fixed Non-adjustable (0.15 minimum)"]
[null,{"v":0.15,"d":"0.150"},"Total"]